fUSD/lending_fUSD_20260620
["ID","MTS","AMOUNT","RATE_DAILY","PERIOD"]
[425805142,1781914232000,-409.0,0.00020049,2]
[425805138,1781914232000,-407.0,0.00020007,2]
[425805134,1781914232000,-407.0,0.0002,2]
[425805132,1781914232000,-3501.18,0.0002,2]
[425805135,1781914232000,-404.0,0.0002,2]
[425805131,1781914232000,-201.0,0.0002,2]
[425805139,1781914232000,-407.0,0.0002002,2]
[425805140,1781914232000,-411.0,0.00020049,2]
[425805133,1781914232000,-3610.1,0.0002,2]
[425805130,1781914232000,-167.0,0.0002,2]
[425805174,1781914233000,-5000.0,0.00021918,2]
[425805165,1781914233000,-152.0,0.00021,2]
[425805167,1781914233000,-201.0,0.00021,2]
[425805173,1781914233000,-166.66,0.00021644,2]
[425805166,1781914233000,-167.0,0.00021,2]
[425805169,1781914233000,-166.66,0.00021223,2]
[425805175,1781914233000,-200.0,0.00021918,2]
[425805168,1781914233000,-1734.62772924,0.00021046,2]
[425805171,1781914233000,-1798.80895522,0.00021594,2]
[425805170,1781914233000,-1852.42,0.00021253,2]
[425805164,1781914233000,-175.0,0.00021,2]
[425805172,1781914233000,-3383.2,0.00021623,2]
[425805163,1781914233000,-384.0,0.00021,2]
[425805153,1781914233000,-151.0,0.00020381,2]
[425805160,1781914233000,-400.0,0.00020801,2]
[425805159,1781914233000,-386.16599797,0.00020737,2]
[425805156,1781914233000,-2500.0,0.00020737,2]
[425805161,1781914233000,-166.66,0.00020803,2]
[425805157,1781914233000,-2500.0,0.00020737,2]
[425805158,1781914233000,-2500.0,0.00020737,2]
[425805155,1781914233000,-1672.7364795,0.00020498,2]
[425805154,1781914233000,-166.66,0.00020383,2]
[425805152,1781914233000,-444.31,0.00020378,2]
[425805149,1781914233000,-409.0,0.00020294,2]
[425805148,1781914233000,-344.07,0.00020231,2]
[425805151,1781914233000,-16820.31,0.00020375,2]
[425805176,1781914233000,-200.0,0.00021918,2]
[425805162,1781914233000,-244.0,0.00021,2]
[425805177,1781914233000,-200.0,0.00021918,2]
[425805150,1781914233000,-200.0,0.00020304,2]
[425805178,1781914233000,-200.0,0.00021918,2]
[425805180,1781914233000,-244.0,0.00022,2]
[425805208,1781914233000,-2024.40849882,0.000225,2]
[425805207,1781914233000,-496.2484482,0.000225,2]
[425805204,1781914233000,-407.0,0.00022466,2]
[425805200,1781914233000,-1933.1,0.00022466,2]
[425805201,1781914233000,-1722.08,0.00022466,2]
[425805205,1781914233000,-400.0,0.00022466,2]
[425805202,1781914233000,-366.89,0.00022466,2]
[425805203,1781914233000,-403.0,0.00022466,2]
[425805198,1781914233000,-150.0,0.00022353,2]
[425805199,1781914233000,-205.24672849,0.00022407,2]
[425805195,1781914233000,-1059.55637905,0.00022235,7]
[425805197,1781914233000,-151.0,0.00022353,2]
[425805196,1781914233000,-800.86217864,0.00022235,7]
[425805206,1781914233000,-25190.56495317,0.000225,2]
[425805194,1781914233000,-411.0,0.00022232,2]
[425805188,1781914233000,-3715.58,0.00022,2]
[425805184,1781914233000,-175.0,0.00022,2]
[425805186,1781914233000,-167.0,0.00022,2]
[425805183,1781914233000,-300.0,0.00022,2]
[425805181,1781914233000,-2212.36426466,0.00022,2]
[425805182,1781914233000,-384.0,0.00022,2]
[425805179,1781914233000,-296.12,0.00021918,2]
[425805187,1781914233000,-201.0,0.00022,2]
[425805190,1781914233000,-409.0,0.00022082,2]
[425805189,1781914233000,-166.66,0.00022064,30]
[425805191,1781914233000,-244.84411851,0.0002211,2]
[425805192,1781914233000,-400.0,0.00022133,2]
[425805185,1781914233000,-152.86067764,0.00022,2]
[425805193,1781914233000,-1865.36488656,0.00022142,2]
[425805231,1781914238000,-364.81376268,0.00018851,2]
[425805232,1781914238000,-135.18623732,0.00018851,2]
[425805230,1781914238000,-500.0,0.00018851,2]
[425805233,1781914238000,-500.0,0.00018851,2]
[425805237,1781914238000,-436.75892945,0.00018851,2]
[425805235,1781914238000,-309.60176044,0.00018851,2]
[425805238,1781914238000,-63.24107055,0.00018851,2]
[425805242,1781914238000,-190.40668458,0.00018851,2]
[425805236,1781914238000,-500.0,0.00018851,2]
[425805234,1781914238000,-500.0,0.00018851,2]
[425805226,1781914238000,-500.0,0.00018851,2]
[425805222,1781914238000,-500.0,0.00018851,2]
[425805227,1781914238000,-500.0,0.00018851,2]
[425805224,1781914238000,-500.0,0.00018851,2]
[425805225,1781914238000,-500.0,0.00018851,2]
[425805223,1781914238000,-500.0,0.00018851,2]
[425805221,1781914238000,-257.32387396,0.00018851,2]
[425805220,1781914238000,-242.67612604,0.00018851,2]
[425805218,1781914238000,-295.10106669,0.00018851,2]
[425805219,1781914238000,-610.07274959,0.00018851,2]
[425805216,1781914238000,-352.22346137,0.00018851,2]
[425805217,1781914238000,-204.89893331,0.00018851,2]
[425805239,1781914238000,-500.0,0.00018851,2]
[425805229,1781914238000,-500.0,0.00018851,2]
[425805240,1781914238000,-500.0,0.00018851,2]
[425805228,1781914238000,-500.0,0.00018851,2]
[425805243,1781914238000,-309.59331542,0.00018851,2]
[425805241,1781914238000,-500.0,0.00018851,2]
[425805290,1781914238000,-500.0,0.00018851,2]
[425805288,1781914238000,-500.0,0.00018851,2]
[425805286,1781914238000,-500.0,0.00018851,2]
[425805268,1781914238000,-500.0,0.00018851,2]
[425805273,1781914238000,-500.0,0.00018851,2]
[425805283,1781914238000,-500.0,0.00018851,2]
[425805265,1781914238000,-500.0,0.00018851,2]
[425805266,1781914238000,-500.0,0.00018851,2]
[425805279,1781914238000,-500.0,0.00018851,2]
[425805281,1781914238000,-500.0,0.00018851,2]
[425805269,1781914238000,-500.0,0.00018851,2]
[425805275,1781914238000,-500.0,0.00018851,2]
[425805277,1781914238000,-500.0,0.00018851,2]
[425805260,1781914238000,-500.0,0.00018851,2]
[425805250,1781914238000,-500.0,0.00018851,2]
[425805263,1781914238000,-500.0,0.00018851,2]
[425805246,1781914238000,-449.57402744,0.00018851,2]
[425805258,1781914238000,-500.0,0.00018851,2]
[425805254,1781914238000,-500.0,0.00018851,2]
[425805256,1781914238000,-500.0,0.00018851,2]
[425805252,1781914238000,-500.0,0.00018851,2]
[425805248,1781914238000,-500.0,0.00018851,2]
[425805244,1781914238000,-50.42597256,0.00018851,2]
[425805271,1781914238000,-500.0,0.00018851,2]
[425805340,1781914239000,-151.0,0.00023786,2]
[425805343,1781914239000,-151.0,0.00023786,2]
[425805342,1781914239000,-151.0,0.00023786,2]
[425805337,1781914239000,-151.0,0.00023786,2]
[425805334,1781914239000,-151.0,0.00023786,2]
[425805335,1781914239000,-2080.17592889,0.00023786,2]
[425805330,1781914239000,-151.0,0.00023786,2]
[425805327,1781914239000,-2005.9555727,0.00023238,2]
[425805336,1781914239000,-151.0,0.00023786,2]
[425805339,1781914239000,-151.0,0.00023786,2]
[425805344,1781914239000,-151.0,0.00023786,2]
[425805354,1781914239000,-500.0,0.00023786,2]
[425805345,1781914239000,-151.0,0.00023786,2]
[425805341,1781914239000,-151.0,0.00023786,2]
[425805347,1781914239000,-151.0,0.00023786,2]
[425805346,1781914239000,-151.0,0.00023786,2]
[425805348,1781914239000,-500.0,0.00023786,2]
[425805350,1781914239000,-151.0,0.00023786,2]
[425805349,1781914239000,-151.0,0.00023786,2]
[425805351,1781914239000,-500.0,0.00023786,2]
[425805355,1781914239000,-151.0,0.00023786,2]
[425805356,1781914239000,-151.0,0.00023786,2]
[425805353,1781914239000,-151.0,0.00023786,2]
[425805326,1781914239000,-470.0,0.00023,2]
[425805338,1781914239000,-151.0,0.00023786,2]
[425805332,1781914239000,-151.0,0.00023786,2]
[425805322,1781914239000,-1018.55540657,0.00023,2]
[425805333,1781914239000,-200.0,0.00023786,2]
[425805352,1781914239000,-151.0,0.00023786,2]
[425805296,1781914239000,-500.0,0.00018851,2]
[425805292,1781914239000,-500.0,0.00018851,2]
[425805298,1781914239000,-500.0,0.00018851,2]
[425805294,1781914239000,-500.0,0.00018851,2]
[425805304,1781914239000,-500.0,0.00018851,2]
[425805302,1781914239000,-500.0,0.00018851,2]
[425805300,1781914239000,-500.0,0.00018851,2]
[425805306,1781914239000,-500.0,0.00018851,2]
[425805308,1781914239000,-500.0,0.00018851,2]
[425805310,1781914239000,-781.62263322,0.000225,2]
[425805312,1781914239000,-608.8849725,0.00022628,2]
[425805314,1781914239000,-1934.38338736,0.0002269,2]
[425805315,1781914239000,-1588.4373086,0.00022703,2]
[425805316,1781914239000,-44372.6993454,0.00022703,2]
[425805317,1781914239000,-37887.0017452,0.00022744,2]
[425805318,1781914239000,-344.07,0.0002276,2]
[425805319,1781914239000,-183.69325325,0.000228,2]
[425805320,1781914239000,-244.0,0.00023,2]
[425805323,1781914239000,-175.0,0.00023,2]
[425805321,1781914239000,-384.0,0.00023,2]
[425805325,1781914239000,-201.0,0.00023,2]
[425805324,1781914239000,-167.0,0.00023,2]
[425805328,1781914239000,-3004.94,0.00023245,7]
[425805329,1781914239000,-750.0,0.00023288,2]
[425805331,1781914239000,-151.0,0.00023786,2]
[425805363,1781914239000,-500.0,0.00023786,2]
[425805361,1781914239000,-151.0,0.00023786,2]
[425805365,1781914239000,-151.0,0.00023786,2]
[425805384,1781914239000,-179.38288373,0.000241,2]
[425805387,1781914239000,-2863.82,0.00024174,2]
[425805392,1781914239000,-200.0,0.00024334,2]
[425805391,1781914239000,-151.0,0.00024334,2]
[425805394,1781914239000,-165.454366,0.000245,14]
[425805393,1781914239000,-2157.14243826,0.00024334,2]
[425805395,1781914239000,-274.226415,0.000245,14]
[425805400,1781914239000,-1000.0,0.00024658,2]
[425805398,1781914239000,-3101.42,0.00024641,7]
[425805397,1781914239000,-179.0,0.00024637,10]
[425805396,1781914239000,-165.454367,0.000245,14]
[425805401,1781914239000,-155.6,0.00024658,2]
[425805399,1781914239000,-500.0,0.00024657,2]
[425805403,1781914239000,-161.600601,0.00024677,30]
[425805402,1781914239000,-153.52,0.00024658,2]
[425805404,1781914239000,-1200.0,0.000248,9]
[425805405,1781914239000,-400.0,0.00024825,2]
[425805406,1781914239000,-2792.52,0.00024868,7]
[425805407,1781914239000,-151.0,0.00024882,2]
[425805408,1781914239000,-200.0,0.00024882,2]
[425805409,1781914239000,-2236.95670847,0.00024882,2]
[425805412,1781914239000,-218.67099295,0.000249,2]
[425805410,1781914239000,-2500.0,0.000249,9]
[425805411,1781914239000,-633.49537878,0.000249,2]
[425805414,1781914239000,-498.79892273,0.0002499,2]
[425805386,1781914239000,-980.44,0.00024174,2]
[425805383,1781914239000,-150.84406616,0.000241,2]
[425805357,1781914239000,-500.0,0.00023786,2]
[425805388,1781914239000,-41083.12,0.00024174,2]
[425805367,1781914239000,-151.0,0.00023786,2]
[425805364,1781914239000,-151.0,0.00023786,2]
[425805359,1781914239000,-151.0,0.00023786,2]
[425805358,1781914239000,-151.0,0.00023786,2]
[425805366,1781914239000,-500.0,0.00023786,2]
[425805362,1781914239000,-151.0,0.00023786,2]
[425805413,1781914239000,-3186.7278199,0.000249,2]
[425805390,1781914239000,-151.0,0.00024324,2]
[425805369,1781914239000,-500.0,0.00023786,2]
[425805368,1781914239000,-151.0,0.00023786,2]
[425805370,1781914239000,-151.0,0.00023786,2]
[425805371,1781914239000,-151.0,0.00023786,2]
[425805360,1781914239000,-500.0,0.00023786,2]
[425805373,1781914239000,-500.0,0.00023786,2]
[425805372,1781914239000,-500.0,0.00023786,2]
[425805381,1781914239000,-300.03231362,0.00024,2]
[425805389,1781914239000,-1187.81567947,0.00024224,2]
[425805382,1781914239000,-201.0,0.00024,2]
[425805380,1781914239000,-167.0,0.00024,2]
[425805385,1781914239000,-3308.61,0.00024174,2]
[425805377,1781914239000,-244.0,0.00024,2]
[425805378,1781914239000,-384.0,0.00024,2]
[425805375,1781914239000,-150.0,0.00023852,2]
[425805376,1781914239000,-150.0,0.00023866,2]
[425805374,1781914239000,-500.0,0.00023786,2]
[425805379,1781914239000,-175.0,0.00024,2]
[425805453,1781914240000,-151.0,0.00025978,2]
[425805459,1781914240000,-588.82,0.00026027,30]
[425805456,1781914240000,-1134.7054521,0.00026,2]
[425805450,1781914240000,-3186.72781983,0.00025889,2]
[425805447,1781914240000,-980.44,0.00025786,2]
[425805451,1781914240000,-1187.81567942,0.00025915,2]
[425805443,1781914240000,-1983.07829474,0.0002543,2]
[425805444,1781914240000,-4909.67400844,0.00025735,14]
[425805442,1781914240000,-200.0,0.0002543,2]
[425805449,1781914240000,-41083.12,0.00025786,2]
[425805460,1781914240000,-585.84,0.00026027,7]
[425805466,1781914240000,-153.04,0.00026301,2]
[425805452,1781914240000,-161.60060098,0.00025978,30]
[425805455,1781914240000,-612.49742787,0.0002599,2]
[425805457,1781914240000,-4610.18082744,0.00026,2]
[425805458,1781914240000,-220.60543849,0.00026,2]
[425805462,1781914240000,-699.67,0.00026027,30]
[425805461,1781914240000,-552.82,0.00026027,7]
[425805463,1781914240000,-8661.24691314,0.00026235,14]
[425805464,1781914240000,-151.0,0.00026296,2]
[425805465,1781914240000,-560.2527,0.00026298,2]
[425805467,1781914240000,-28026.98738661,0.000264,2]
[425805468,1781914240000,-337.59825,0.0002649,2]
[425805446,1781914240000,-3308.61,0.00025786,2]
[425805454,1781914240000,-200.0,0.00025978,2]
[425805445,1781914240000,-153.52,0.00025753,30]
[425805428,1781914240000,-961036.10901717,0.00025,2]
[425805439,1781914240000,-344.07,0.00025289,2]
[425805471,1781914240000,-150.0,0.00026493,5]
[425805424,1781914240000,-2241.44193966,0.00025,2]
[425805415,1781914240000,-512.09132885,0.00024999,2]
[425805416,1781914240000,-211.35637956,0.00025,2]
[425805417,1781914240000,-1818.15233889,0.00025,2]
[425805419,1781914240000,-540.0,0.00025,2]
[425805421,1781914240000,-622.15511558,0.00025,2]
[425805420,1781914240000,-385.63997692,0.00025,2]
[425805418,1781914240000,-247.0,0.00025,2]
[425805423,1781914240000,-7260.25459381,0.00025,2]
[425805422,1781914240000,-3100.01058643,0.00025,2]
[425805425,1781914240000,-3377.3748596,0.00025,2]
[425805431,1781914240000,-175.81610853,0.00025,2]
[425805430,1781914240000,-193.0,0.00025,2]
[425805426,1781914240000,-170.43691721,0.00025,2]
[425805436,1781914240000,-381.41,0.00025,2]
[425805433,1781914240000,-381.41,0.00025,2]
[425805427,1781914240000,-4881.76327856,0.00025,2]
[425805432,1781914240000,-206.0,0.00025,2]
[425805434,1781914240000,-381.41,0.00025,2]
[425805435,1781914240000,-381.41,0.00025,2]
[425805448,1781914240000,-2863.82,0.00025786,2]
[425805438,1781914240000,-153.52,0.00025205,7]
[425805440,1781914240000,-313.18133806,0.00025417,2]
[425805441,1781914240000,-151.0,0.0002543,2]
[425805437,1781914240000,-161.60060098,0.00025156,30]
[425805470,1781914240000,-357.339598,0.00026493,2]
[425805474,1781914240000,-1208.16368368,0.000267,2]
[425805525,1781914240000,-500.0,0.000275,7]
[425805503,1781914240000,-293.61380229,0.00027381,2]
[425805499,1781914240000,-228.6129439,0.000272,2]
[425805504,1781914240000,-153.04,0.00027397,30]
[425805505,1781914240000,-150.0,0.00027397,2]
[425805506,1781914240000,-416.29784631,0.00027397,2]
[425805516,1781914240000,-384.502733,0.000274,7]
[425805509,1781914240000,-429.91477368,0.00027397,2]
[425805512,1781914240000,-7584.48,0.00027397,10]
[425805507,1781914240000,-1500.0,0.00027397,2]
[425805510,1781914240000,-300.0,0.00027397,2]
[425805515,1781914240000,-384.502733,0.000274,7]
[425805498,1781914240000,-1208.16368368,0.000272,2]
[425805508,1781914240000,-519.01954751,0.00027397,2]
[425805514,1781914240000,-151.0,0.000274,7]
[425805518,1781914240000,-384.502733,0.000274,7]
[425805517,1781914240000,-384.502733,0.000274,7]
[425805520,1781914240000,-415.87863844,0.000275,2]
[425805519,1781914240000,-151.0,0.000274,7]
[425805521,1781914240000,-1208.16368368,0.000275,2]
[425805524,1781914240000,-1876.05273722,0.000275,2]
[425805522,1781914240000,-228.6129439,0.000275,2]
[425805523,1781914240000,-706.07748194,0.000275,2]
[425805469,1781914240000,-377.866388,0.00026492,2]
[425805526,1781914240000,-150.0,0.00027553,5]
[425805513,1781914240000,-11015.5488,0.000274,2]
[425805500,1781914240000,-706.07748194,0.000272,2]
[425805511,1781914240000,-1000.0,0.00027397,20]
[425805502,1781914240000,-3608.0,0.0002723,5]
[425805473,1781914240000,-415.87863844,0.000267,2]
[425805501,1781914240000,-1876.05273722,0.000272,2]
[425805475,1781914240000,-228.6129439,0.000267,2]
[425805477,1781914240000,-1876.05273722,0.000267,2]
[425805476,1781914240000,-706.07748194,0.000267,2]
[425805479,1781914240000,-12956.7073869,0.00026735,14]
[425805482,1781914240000,-536.23,0.00026808,7]
[425805480,1781914240000,-17530.8804,0.00026735,14]
[425805478,1781914240000,-381.41,0.00026725,2]
[425805481,1781914240000,-568.26,0.00026808,7]
[425805483,1781914240000,-153.04,0.00026849,7]
[425805484,1781914240000,-3186.72781983,0.00026878,2]
[425805485,1781914240000,-183.69325325,0.0002695,2]
[425805472,1781914240000,-200.0,0.00026526,2]
[425805487,1781914240000,-500.0,0.00026999,2]
[425805486,1781914240000,-400.0,0.00026959,2]
[425805488,1781914240000,-225.41836361,0.00026999,2]
[425805490,1781914240000,-1208.16368368,0.00027,2]
[425805493,1781914240000,-1876.05273722,0.00027,2]
[425805489,1781914240000,-415.87863844,0.00027,2]
[425805491,1781914240000,-228.6129439,0.00027,2]
[425805492,1781914240000,-706.07748194,0.00027,2]
[425805495,1781914240000,-608.8849725,0.00027077,2]
[425805496,1781914240000,-1800.0,0.00027123,2]
[425805497,1781914240000,-415.87863844,0.000272,2]
[425805494,1781914240000,-200.0,0.00027074,2]
[425805561,1781914241000,-160.56,0.0002863,30]
[425805564,1781914241000,-160.58,0.0002863,30]
[425805566,1781914241000,-163.39,0.00028631,30]
[425805558,1781914241000,-1208.16368368,0.000286,2]
[425805557,1781914241000,-300.03231362,0.00028587,2]
[425805554,1781914241000,-478.90903315,0.000283,2]
[425805553,1781914241000,-478.90903315,0.000283,2]
[425805568,1781914241000,-200.0,0.00028718,2]
[425805556,1781914241000,-157.0,0.00028484,2]
[425805562,1781914241000,-162.95,0.0002863,30]
[425805560,1781914241000,-160.33,0.0002863,2]
[425805565,1781914241000,-162.94,0.0002863,30]
[425805563,1781914241000,-160.83,0.0002863,2]
[425805567,1781914241000,-500.0,0.00028689,17]
[425805570,1781914241000,-160.83,0.0002873,7]
[425805573,1781914241000,-150.0,0.00028767,2]
[425805576,1781914241000,-1783.19,0.00028849,2]
[425805577,1781914241000,-3186.72781983,0.00028856,2]
[425805572,1781914241000,-519.01954751,0.00028766,2]
[425805571,1781914241000,-153.07,0.0002875,7]
[425805578,1781914241000,-1030.0,0.00028866,2]
[425805574,1781914241000,-160.33,0.0002883,30]
[425805555,1781914241000,-199.96658507,0.0002842,2]
[425805569,1781914241000,-160.33,0.0002873,7]
[425805550,1781914241000,-151.0,0.00028267,2]
[425805579,1781914241000,-1068.11,0.00028866,2]
[425805559,1781914241000,-162.92,0.0002863,30]
[425805527,1781914241000,-1187.81567942,0.00027607,2]
[425805528,1781914241000,-151.0,0.00027607,7]
[425805538,1781914241000,-2000.0,0.00027931,2]
[425805529,1781914241000,-200.0,0.00027622,2]
[425805531,1781914241000,-1208.16368368,0.000278,2]
[425805530,1781914241000,-415.87863844,0.000278,2]
[425805535,1781914241000,-151.0,0.000278,7]
[425805532,1781914241000,-228.6129439,0.000278,2]
[425805534,1781914241000,-1876.05273722,0.000278,2]
[425805537,1781914241000,-3186.72781983,0.00027867,2]
[425805536,1781914241000,-500.0,0.00027854,15]
[425805551,1781914241000,-1208.16368368,0.000283,2]
[425805533,1781914241000,-706.07748194,0.000278,2]
[425805545,1781914241000,-191.34,0.00028031,7]
[425805547,1781914241000,-150.0,0.00028143,20]
[425805539,1781914241000,-5702.87417311,0.00028,4]
[425805540,1781914241000,-151.0,0.00028,7]
[425805541,1781914241000,-500.0,0.00028029,7]
[425805549,1781914241000,-200.0,0.0002817,2]
[425805546,1781914241000,-1208.16368368,0.000281,2]
[425805543,1781914241000,-160.271321,0.0002803,7]
[425805544,1781914241000,-36243.4612347,0.00028031,2]
[425805548,1781914241000,-39800.3546604,0.00028144,2]
[425805552,1781914241000,-478.90903315,0.000283,2]
[425805542,1781914241000,-500.0,0.0002803,7]
[425805575,1781914241000,-160.83,0.0002883,30]
[425805588,1781914241000,-1377.42282658,0.00028866,2]
[425805582,1781914241000,-1148.61238259,0.00028866,2]
[425805611,1781914241000,-152.0,0.00028866,2]
[425805613,1781914241000,-381.80942428,0.00028866,2]
[425805612,1781914241000,-500.0,0.00028866,2]
[425805614,1781914241000,-721.12765534,0.00028866,2]
[425805617,1781914241000,-152.0,0.00028866,2]
[425805616,1781914241000,-500.0,0.00028866,2]
[425805615,1781914241000,-152.0,0.00028866,2]
[425805618,1781914241000,-500.0,0.00028866,2]
[425805619,1781914241000,-152.0,0.00028866,2]
[425805621,1781914241000,-152.0,0.00028866,2]
[425805623,1781914241000,-152.0,0.00028866,2]
[425805622,1781914241000,-500.0,0.00028866,2]
[425805624,1781914241000,-500.0,0.00028866,2]
[425805620,1781914241000,-500.0,0.00028866,2]
[425805626,1781914241000,-500.0,0.00028866,2]
[425805625,1781914241000,-152.0,0.00028866,2]
[425805628,1781914241000,-500.0,0.00028866,2]
[425805627,1781914241000,-500.0,0.00028866,2]
[425805629,1781914241000,-150.0,0.00028878,5]
[425805631,1781914241000,-1208.16368368,0.000289,2]
[425805581,1781914241000,-1107.63007,0.00028866,2]
[425805632,1781914241000,-3700.0,0.000289,10]
[425805633,1781914241000,-402.47050455,0.00028921,2]
[425805608,1781914241000,-2054.15682156,0.00028866,2]
[425805609,1781914241000,-152.0,0.00028866,2]
[425805630,1781914241000,-202.0,0.000289,2]
[425805610,1781914241000,-500.0,0.00028866,2]
[425805607,1781914241000,-1980.8648231,0.00028866,2]
[425805583,1781914241000,-1191.11104074,0.00028866,2]
[425805584,1781914241000,-1235.18214925,0.00028866,2]
[425805587,1781914241000,-1328.27659266,0.00028866,2]
[425805585,1781914241000,-174.61919141,0.00028866,2]
[425805586,1781914241000,-1280.88388877,0.00028866,2]
[425805589,1781914241000,-151.0,0.00028866,2]
[425805590,1781914241000,-1428.38747117,0.00028866,2]
[425805602,1781914241000,-1910.18787185,0.00028866,2]
[425805592,1781914241000,-1536.04360648,0.00028866,2]
[425805591,1781914241000,-1481.2378076,0.00028866,2]
[425805594,1781914241000,-1592.87721992,0.00028866,2]
[425805580,1781914241000,-402.47050455,0.00028866,2]
[425805600,1781914241000,-1842.0326633,0.00028866,2]
[425805596,1781914241000,-1712.93078311,0.00028866,2]
[425805603,1781914241000,-152.0,0.00028866,2]
[425805604,1781914241000,-151.0,0.00028866,2]
[425805597,1781914241000,-151.0,0.00028866,2]
[425805605,1781914241000,-500.0,0.00028866,2]
[425805593,1781914241000,-578.20924308,0.00028866,2]
[425805599,1781914241000,-209.40437684,0.00028866,2]
[425805601,1781914241000,-152.0,0.00028866,2]
[425805598,1781914241000,-1776.30922209,0.00028866,2]
[425805595,1781914241000,-1651.81367706,0.00028866,2]
[425805606,1781914241000,-152.0,0.00028866,2]
[425805660,1781914242000,-160.58,0.00029132,7]
[425805668,1781914242000,-151.0,0.00029141,7]
[425805661,1781914242000,-151.0,0.0002914,2]
[425805663,1781914242000,-151.0,0.00029141,2]
[425805656,1781914242000,-151.0,0.00029086,2]
[425805664,1781914242000,-384.502733,0.00029141,7]
[425805665,1781914242000,-384.502733,0.00029141,7]
[425805666,1781914242000,-384.502733,0.00029141,7]
[425805669,1781914242000,-263.78849585,0.00029191,2]
[425805677,1781914242000,-1187.81567942,0.00029298,2]
[425805672,1781914242000,-1208.16368368,0.000292,2]
[425805673,1781914242000,-160.36,0.00029232,2]
[425805671,1781914242000,-151.0,0.00029196,2]
[425805670,1781914242000,-402.47050455,0.00029196,2]
[425805674,1781914242000,-160.87,0.00029232,2]
[425805681,1781914242000,-151.0,0.00029361,2]
[425805675,1781914242000,-402.47050455,0.00029251,2]
[425805678,1781914242000,-402.47050455,0.00029306,2]
[425805676,1781914242000,-151.0,0.00029251,2]
[425805653,1781914242000,-160.33,0.00029031,7]
[425805667,1781914242000,-384.502733,0.00029141,7]
[425805658,1781914242000,-160.56,0.00029132,7]
[425805652,1781914242000,-151.0,0.00029031,2]
[425805655,1781914242000,-402.47050455,0.00029086,2]
[425805634,1781914242000,-151.0,0.00028921,2]
[425805636,1781914242000,-152.0,0.00028921,30]
[425805635,1781914242000,-160.0,0.00028921,30]
[425805638,1781914242000,-244.0,0.00028921,30]
[425805637,1781914242000,-152.0,0.00028921,30]
[425805639,1781914242000,-384.0,0.00028921,30]
[425805641,1781914242000,-175.0,0.00028921,30]
[425805640,1781914242000,-156.0,0.00028921,30]
[425805643,1781914242000,-167.0,0.00028921,30]
[425805642,1781914242000,-152.0,0.00028921,30]
[425805645,1781914242000,-201.0,0.00028921,30]
[425805648,1781914242000,-402.47050455,0.00028976,2]
[425805647,1781914242000,-160.83,0.00028931,2]
[425805644,1781914242000,-156.0,0.00028921,30]
[425805649,1781914242000,-151.0,0.00028976,2]
[425805650,1781914242000,-470.0,0.00029,7]
[425805646,1781914242000,-160.33,0.00028931,2]
[425805651,1781914242000,-402.47050455,0.00029031,2]
[425805654,1781914242000,-160.83,0.00029031,7]
[425805657,1781914242000,-160.33,0.00029132,30]
[425805662,1781914242000,-402.47050455,0.00029141,2]
[425805659,1781914242000,-160.83,0.00029132,30]
[425805679,1781914242000,-151.0,0.00029306,2]